[Event "January 2 Early 2024"]
[Site "https://www.chess.com"]
[Date "2024.01.02"]
[Round "4"]
[White "Novozhilov, Semen"]
[Black "Tifferet, Shakked"]
[Result "1/2-1/2"]
[Board "67"]
[TimeControl "180+1"]
[WhiteFideId "24289167"]
[BlackFideId "2811529"]
[WhiteElo "2772"]
[BlackElo "2534"]
[WhiteTeam "RUS"]
[BlackTeam "ISR"]
[WhiteClock "0:01:17"]
[BlackClock "0:00:05"]

1. d4 {[%clk 0:03:00]}  g6 {[%clk 0:02:56]} 2. e4 {[%clk 0:03:00]}  Bg7 {[%clk 0:02:56]} 3. Nc3 {[%clk 0:03:00]}  c6 {[%clk 0:02:56]} 4. Be3 {[%clk 0:02:59]}  b5 {[%clk 0:02:55]} 5. Bd3 {[%clk 0:02:59]}  a5 {[%clk 0:02:54]} 6. Qd2 {[%clk 0:02:58]}  a4 {[%clk 0:02:53]} 7. a3 {[%clk 0:02:57]}  d6 {[%clk 0:02:53]} 8. Nge2 {[%clk 0:02:53]}  Nd7 {[%clk 0:02:51]} 9. f4 {[%clk 0:02:51]}  e5 {[%clk 0:02:47]} 10. dxe5 {[%clk 0:02:51]}  dxe5 {[%clk 0:02:48]} 11. f5 {[%clk 0:02:51]}  Ngf6 {[%clk 0:02:44]} 12. O-O-O {[%clk 0:02:50]}  Ng4 {[%clk 0:02:40]} 13. Bg5 {[%clk 0:02:50]}  f6 {[%clk 0:02:39]} 14. Be3 {[%clk 0:02:48]}  Nxe3 {[%clk 0:02:36]} 15. Qxe3 {[%clk 0:02:49]}  Qe7 {[%clk 0:02:29]} 16. Na2 {[%clk 0:02:41]}  Qc5 {[%clk 0:01:59]} 17. Qg3 {[%clk 0:02:37]}  Bh6+ {[%clk 0:01:44]} 18. Kb1 {[%clk 0:02:36]}  Qe3 {[%clk 0:01:44]} 19. fxg6 {[%clk 0:02:35]}  Qxg3 {[%clk 0:01:43]} 20. hxg3 {[%clk 0:02:35]}  hxg6 {[%clk 0:01:44]} 21. Nb4 {[%clk 0:02:36]}  Bb7 {[%clk 0:01:42]} 22. c4 {[%clk 0:02:36]}  bxc4 {[%clk 0:01:31]} 23. Bxc4 {[%clk 0:02:36]}  Ke7 {[%clk 0:01:32]} 24. Nc3 {[%clk 0:02:30]}  Nb6 {[%clk 0:01:28]} 25. Ba2 {[%clk 0:02:26]}  Be3 {[%clk 0:01:11]} 26. Nc2 {[%clk 0:02:21]}  Bc5 {[%clk 0:01:11]} 27. Rdf1 {[%clk 0:02:12]}  Rad8 {[%clk 0:01:08]} 28. Ne1 {[%clk 0:02:10]}  Ba6 {[%clk 0:01:02]} 29. Kc2 {[%clk 0:01:43]}  Bxf1 {[%clk 0:00:54]} 30. Rxf1 {[%clk 0:01:44]}  Be3 {[%clk 0:00:46]} 31. Nd3 {[%clk 0:01:42]}  Rh2 {[%clk 0:00:45]} 32. Nb4 {[%clk 0:01:31]}  Rxg2+ {[%clk 0:00:41]} 33. Kb1 {[%clk 0:01:31]}  Rdd2 {[%clk 0:00:39]} 34. Nd1 {[%clk 0:01:23]}  Rxd1+ {[%clk 0:00:07]} 35. Rxd1 {[%clk 0:01:24]}  Rxg3 {[%clk 0:00:05]} 36. Nxc6+ {[%clk 0:01:24]}  Kf8 {[%clk 0:00:06]} 37. Rd8+ {[%clk 0:01:24]}  Kg7 {[%clk 0:00:06]} 38. Be6 {[%clk 0:01:24]}  Rg1+ {[%clk 0:00:03]} 39. Ka2 {[%clk 0:01:24]}  Kh6 {[%clk 0:00:03]} 40. Ne7 {[%clk 0:01:22]}  Kg5 {[%clk 0:00:03]} 41. Rg8 {[%clk 0:01:22]}  Kf4 {[%clk 0:00:02]} 42. Nd5+ {[%clk 0:01:22]}  Kxe4 {[%clk 0:00:02]} 43. Nxb6 {[%clk 0:01:21]}  Bxb6 {[%clk 0:00:02]} 44. Rb8 {[%clk 0:01:22]}  Bd4 {[%clk 0:00:03]} 45. Rb5 {[%clk 0:01:22]}  Rf1 {[%clk 0:00:03]} 46. Bd5+ {[%clk 0:01:23]}  Kd3 {[%clk 0:00:03]} 47. Ra5 {[%clk 0:01:23]}  Rf2 {[%clk 0:00:03]} 48. Rb5 {[%clk 0:01:23]}  Rxb2+ {[%clk 0:00:03]} 49. Rxb2 {[%clk 0:01:22]}  Bxb2 {[%clk 0:00:04]} 50. Kxb2 {[%clk 0:01:23]}  e4 {[%clk 0:00:04]} 51. Bc6 {[%clk 0:01:22]}  e3 {[%clk 0:00:04]} 52. Bxa4 {[%clk 0:01:22]}  e2 {[%clk 0:00:03]} 53. Bb5+ {[%clk 0:01:23]}  Kd2 {[%clk 0:00:03]} 54. Bxe2 {[%clk 0:01:24]}  Kxe2 {[%clk 0:00:04]} 55. a4 {[%clk 0:01:24]}  f5 {[%clk 0:00:03]} 56. a5 {[%clk 0:01:25]}  f4 {[%clk 0:00:04]} 57. a6 {[%clk 0:01:26]}  f3 {[%clk 0:00:05]} 58. a7 {[%clk 0:01:27]}  f2 {[%clk 0:00:06]} 59. a8=Q {[%clk 0:01:28]}  f1=Q {[%clk 0:00:07]} 60. Qe4+ {[%clk 0:01:28]}  Kd1 {[%clk 0:00:05]} 61. Qd5+ {[%clk 0:01:25]}  Ke1 {[%clk 0:00:04]} 62. Qa5+ {[%clk 0:01:25]}  Kf2 {[%clk 0:00:04]} 63. Qb6+ {[%clk 0:01:26]}  Kg2 {[%clk 0:00:04]} 64. Qxg6+ {[%clk 0:01:26]}  Kf2 {[%clk 0:00:04]} 65. Kc2 {[%clk 0:01:26]}  Qg2 {[%clk 0:00:04]} 66. Qb6+ {[%clk 0:01:24]}  Kg3+ {[%clk 0:00:04]} 67. Kc3 {[%clk 0:01:25]}  Qf3+ {[%clk 0:00:04]} 68. Kb4 {[%clk 0:01:25]}  Qf2 {[%clk 0:00:04]} 69. Qg6+ {[%clk 0:01:24]}  Kf3 {[%clk 0:00:05]} 70. Kc4 {[%clk 0:01:24]}  Ke2 {[%clk 0:00:06]} 71. Qd3+ {[%clk 0:01:23]}  Ke1 {[%clk 0:00:05]} 72. Qc3+ {[%clk 0:01:22]}  Qd2 {[%clk 0:00:05]} 73. Qg3+ {[%clk 0:01:22]}  Qf2 {[%clk 0:00:05]} 74. Qc3+ {[%clk 0:01:20]}  Qd2 {[%clk 0:00:06]} 75. Qa1+ {[%clk 0:01:20]}  Qd1 {[%clk 0:00:06]} 76. Qh8 {[%clk 0:01:20]}  Qe2+ {[%clk 0:00:05]} 77. Kb3 {[%clk 0:01:20]}  Qd1+ {[%clk 0:00:05]} 78. Kb2 {[%clk 0:01:19]}  Qd2+ {[%clk 0:00:06]} 79. Kb1 {[%clk 0:01:19]}  Qd1+ {[%clk 0:00:06]} 80. Kb2 {[%clk 0:01:20]}  Qd2+ {[%clk 0:00:06]} 81. Ka3 {[%clk 0:01:21]}  Qd3+ {[%clk 0:00:05]} 82. Kb4 {[%clk 0:01:21]}  Qd2+ {[%clk 0:00:05]} 83. Kc5 {[%clk 0:01:21]}  Qc2+ {[%clk 0:00:05]} 84. Kd6 {[%clk 0:01:22]}  Qd2+ {[%clk 0:00:05]} 85. Ke7 {[%clk 0:01:22]}  Qe2+ {[%clk 0:00:04]} 86. Kd7 {[%clk 0:01:23]}  Qd2+ {[%clk 0:00:05]} 87. Kc7 {[%clk 0:01:23]}  Qc2+ {[%clk 0:00:05]} 88. Kb8 {[%clk 0:01:24]}  Qb3+ {[%clk 0:00:05]} 89. Ka7 {[%clk 0:01:24]}  Qa3+ {[%clk 0:00:05]} 90. Kb6 {[%clk 0:01:24]}  Qb4+ {[%clk 0:00:05]} 91. Kc6 {[%clk 0:01:24]}  Qa4+ {[%clk 0:00:06]} 92. Kd5 {[%clk 0:01:24]}  Qb5+ {[%clk 0:00:06]} 93. Ke4 {[%clk 0:01:25]}  Qc4+ {[%clk 0:00:06]} 94. Kf3 {[%clk 0:01:25]}  Qd3+ {[%clk 0:00:05]} 95. Kg2 {[%clk 0:01:24]}  Qd2+ {[%clk 0:00:05]} 96. Kh1 {[%clk 0:01:22]}  Qe2 {[%clk 0:00:05]} 97. Qd4 {[%clk 0:01:17]}  Qf2 {[%clk 0:00:03]} 98. Qe4+ {[%clk 0:01:16]}  Qe2 {[%clk 0:00:03]} 99. Qh4+ {[%clk 0:01:16]}  Kd2 {[%clk 0:00:03]} 100. Qb4+ {[%clk 0:01:17]}  Kd1 {[%clk 0:00:03]} 101. Qb1+ {[%clk 0:01:17]}  Kd2 {[%clk 0:00:04]} 102. Kg1 {[%clk 0:01:17]}  Qd1+ {[%clk 0:00:04]} 103. Qxd1+ {[%clk 0:01:17]}  Kxd1 {[%clk 0:00:05]} 1/2-1/2

[Event "January 2 Early 2024"]
[Site "https://www.chess.com"]
[Date "2024.01.02"]
[Round "4"]
[White "Kochiev, Ivan"]
[Black "Garcia Ramos, Daniel"]
[Result "1-0"]
[Board "68"]
[TimeControl "180+1"]
[WhiteFideId "2917890"]
[BlackFideId "32010311"]
[WhiteElo "2531"]
[BlackElo "2768"]
[WhiteTeam "BUL"]
[BlackTeam "ESP"]
[WhiteClock "0:00:28"]
[BlackClock "0:00:10"]

1. e4 {[%clk 0:03:00]}  c6 {[%clk 0:03:00]} 2. d4 {[%clk 0:03:00]}  d5 {[%clk 0:03:00]} 3. Nc3 {[%clk 0:03:00]}  dxe4 {[%clk 0:03:00]} 4. Nxe4 {[%clk 0:03:01]}  Nf6 {[%clk 0:03:01]} 5. Nxf6+ {[%clk 0:03:01]}  exf6 {[%clk 0:03:01]} 6. c3 {[%clk 0:03:02]}  Bd6 {[%clk 0:03:02]} 7. Bd3 {[%clk 0:03:02]}  Na6 {[%clk 0:03:02]} 8. Ne2 {[%clk 0:03:03]}  Nc7 {[%clk 0:03:02]} 9. O-O {[%clk 0:03:04]}  Nd5 {[%clk 0:03:01]} 10. Ng3 {[%clk 0:02:57]}  O-O {[%clk 0:02:57]} 11. f4 {[%clk 0:02:58]}  Re8 {[%clk 0:02:55]} 12. Qf3 {[%clk 0:02:55]}  Qc7 {[%clk 0:02:11]} 13. f5 {[%clk 0:02:49]}  Bd7 {[%clk 0:01:55]} 14. Nh5 {[%clk 0:02:46]}  b5 {[%clk 0:01:10]} 15. Bh6 {[%clk 0:02:26]}  g6 {[%clk 0:00:53]} 16. fxg6 {[%clk 0:02:18]}  fxg6 {[%clk 0:00:44]} 17. Nxf6+ {[%clk 0:01:36]}  Nxf6 {[%clk 0:00:44]} 18. Qxf6 {[%clk 0:01:37]}  Rf8 {[%clk 0:00:42]} 19. Bxf8 {[%clk 0:01:34]}  Rxf8 {[%clk 0:00:41]} 20. Qh4 {[%clk 0:01:34]}  Bf4 {[%clk 0:00:41]} 21. Rae1 {[%clk 0:01:29]}  Qd6 {[%clk 0:00:33]} 22. Re7 {[%clk 0:01:07]}  Bxh2+ {[%clk 0:00:33]} 23. Kh1 {[%clk 0:01:07]}  Rxf1+ {[%clk 0:00:31]} 24. Bxf1 {[%clk 0:01:08]}  h5 {[%clk 0:00:16]} 25. Rxd7 {[%clk 0:01:03]}  Qxd7 {[%clk 0:00:17]} 26. Kxh2 {[%clk 0:01:01]}  Qf5 {[%clk 0:00:16]} 27. Be2 {[%clk 0:00:50]}  Kg7 {[%clk 0:00:14]} 28. Qg3 {[%clk 0:00:48]}  Kh6 {[%clk 0:00:12]} 29. Bd3 {[%clk 0:00:44]}  Qf6 {[%clk 0:00:11]} 30. b3 {[%clk 0:00:41]}  a5 {[%clk 0:00:11]} 31. c4 {[%clk 0:00:41]}  bxc4 {[%clk 0:00:11]} 32. bxc4 {[%clk 0:00:42]}  h4 {[%clk 0:00:10]} 33. Qxg6+ {[%clk 0:00:32]}  Qxg6 {[%clk 0:00:10]} 34. Bxg6 {[%clk 0:00:33]}  Kxg6 {[%clk 0:00:10]} 35. Kh3 {[%clk 0:00:34]}  Kf5 {[%clk 0:00:11]} 36. Kxh4 {[%clk 0:00:35]}  Ke4 {[%clk 0:00:11]} 37. g4 {[%clk 0:00:35]}  Kxd4 {[%clk 0:00:12]} 38. g5 {[%clk 0:00:36]}  Kxc4 {[%clk 0:00:12]} 39. g6 {[%clk 0:00:36]}  Kb4 {[%clk 0:00:12]} 40. g7 {[%clk 0:00:36]}  c5 {[%clk 0:00:12]} 41. g8=Q {[%clk 0:00:37]}  c4 {[%clk 0:00:13]} 42. Qb8+ {[%clk 0:00:36]}  Ka3 {[%clk 0:00:13]} 43. Qb1 {[%clk 0:00:35]}  a4 {[%clk 0:00:12]} 44. Kg4 {[%clk 0:00:32]}  c3 {[%clk 0:00:12]} 45. Kf4 {[%clk 0:00:29]}  c2 {[%clk 0:00:11]} 46. Qxc2 {[%clk 0:00:30]}  Kb4 {[%clk 0:00:12]} 47. Qb2+ {[%clk 0:00:30]}  Kc4 {[%clk 0:00:10]} 48. a3 {[%clk 0:00:28]} 1-0

[Event "January 2 Early 2024"]
[Site "https://www.chess.com"]
[Date "2024.01.02"]
[Round "4"]
[White "Munkhgal, Gombosuren"]
[Black "Bodnar, Nikolay"]
[Result "1/2-1/2"]
[Board "69"]
[TimeControl "180+1"]
[WhiteFideId "4901266"]
[BlackFideId "14106469"]
[WhiteElo "2764"]
[BlackElo "2529"]
[WhiteTeam "MGL"]
[BlackTeam "UKR"]
[WhiteClock "0:00:03"]
[BlackClock "0:00:14"]

1. e4 {[%clk 0:03:00]}  c5 {[%clk 0:02:57]} 2. b4 {[%clk 0:03:00]}  cxb4 {[%clk 0:02:56]} 3. d4 {[%clk 0:03:00]}  d6 {[%clk 0:02:54]} 4. f4 {[%clk 0:02:58]}  Nf6 {[%clk 0:02:53]} 5. Bd3 {[%clk 0:02:58]}  e5 {[%clk 0:02:48]} 6. Nf3 {[%clk 0:02:50]}  Bg4 {[%clk 0:02:46]} 7. O-O {[%clk 0:02:45]}  Nbd7 {[%clk 0:02:43]} 8. Bb2 {[%clk 0:02:42]}  Qc7 {[%clk 0:02:39]} 9. h3 {[%clk 0:02:39]}  Bxf3 {[%clk 0:02:38]} 10. Qxf3 {[%clk 0:02:40]}  Be7 {[%clk 0:02:38]} 11. Nd2 {[%clk 0:02:30]}  O-O {[%clk 0:02:37]} 12. g4 {[%clk 0:02:30]}  exd4 {[%clk 0:02:27]} 13. g5 {[%clk 0:02:28]}  Ne8 {[%clk 0:02:23]} 14. Bxd4 {[%clk 0:02:28]}  d5 {[%clk 0:02:18]} 15. exd5 {[%clk 0:02:21]}  Bc5 {[%clk 0:02:17]} 16. Bf2 {[%clk 0:02:05]}  Bxf2+ {[%clk 0:02:16]} 17. Rxf2 {[%clk 0:02:06]}  Nc5 {[%clk 0:02:15]} 18. Re1 {[%clk 0:01:43]}  Nxd3 {[%clk 0:02:14]} 19. Qxd3 {[%clk 0:01:44]}  Nd6 {[%clk 0:02:13]} 20. f5 {[%clk 0:01:40]}  Rac8 {[%clk 0:02:11]} 21. Nb3 {[%clk 0:01:35]}  Rfe8 {[%clk 0:02:05]} 22. Rxe8+ {[%clk 0:01:33]}  Rxe8 {[%clk 0:02:05]} 23. f6 {[%clk 0:01:33]}  Re5 {[%clk 0:01:42]} 24. h4 {[%clk 0:01:04]}  Re4 {[%clk 0:01:41]} 25. Qg3 {[%clk 0:01:00]}  b6 {[%clk 0:01:20]} 26. Nd2 {[%clk 0:00:54]}  Re1+ {[%clk 0:01:14]} 27. Kh2 {[%clk 0:00:53]}  Qd7 {[%clk 0:01:02]} 28. fxg7 {[%clk 0:00:52]}  Qe7 {[%clk 0:00:49]} 29. Nf3 {[%clk 0:00:48]}  Re2 {[%clk 0:00:44]} 30. Rxe2 {[%clk 0:00:30]}  Qxe2+ {[%clk 0:00:44]} 31. Kh3 {[%clk 0:00:30]}  Kxg7 {[%clk 0:00:41]} 32. h5 {[%clk 0:00:27]}  Nf5 {[%clk 0:00:21]} 33. h6+ {[%clk 0:00:26]}  Kg6 {[%clk 0:00:20]} 34. Qf4 {[%clk 0:00:10]}  Qf1+ {[%clk 0:00:19]} 35. Kh2 {[%clk 0:00:08]}  Qf2+ {[%clk 0:00:19]} 36. Kh3 {[%clk 0:00:06]}  Qf1+ {[%clk 0:00:16]} 37. Kh2 {[%clk 0:00:03]}  Qe2+ {[%clk 0:00:16]} 38. Kh3 {[%clk 0:00:03]}  Qf1+ {[%clk 0:00:14]} 1/2-1/2

[Event "January 2 Early 2024"]
[Site "https://www.chess.com"]
[Date "2024.01.02"]
[Round "4"]
[White "Petukhov, Dmitry"]
[Black "Matinian, Nikita"]
[Result "1-0"]
[Board "73"]
[TimeControl "180+1"]
[WhiteFideId "4142748"]
[BlackFideId "24129100"]
[WhiteElo "2520"]
[BlackElo "2745"]
[WhiteTeam "RUS"]
[BlackTeam "FID"]
[WhiteClock "0:00:13"]
[BlackClock "0:00:04"]

1. e4 {[%clk 0:03:00]}  c5 {[%clk 0:03:00]} 2. c3 {[%clk 0:02:59]}  d5 {[%clk 0:02:59]} 3. exd5 {[%clk 0:02:59]}  Qxd5 {[%clk 0:03:00]} 4. d4 {[%clk 0:03:00]}  Nf6 {[%clk 0:03:00]} 5. Nf3 {[%clk 0:02:57]}  e6 {[%clk 0:03:00]} 6. Be2 {[%clk 0:02:57]}  Nc6 {[%clk 0:02:59]} 7. O-O {[%clk 0:02:55]}  Be7 {[%clk 0:02:59]} 8. Be3 {[%clk 0:02:52]}  cxd4 {[%clk 0:02:46]} 9. cxd4 {[%clk 0:02:53]}  O-O {[%clk 0:02:45]} 10. Nc3 {[%clk 0:02:53]}  Qd8 {[%clk 0:02:43]} 11. Ne5 {[%clk 0:02:49]}  Bd7 {[%clk 0:02:41]} 12. Bf3 {[%clk 0:02:39]}  Rc8 {[%clk 0:02:41]} 13. Rc1 {[%clk 0:02:37]}  a6 {[%clk 0:02:21]} 14. a3 {[%clk 0:02:30]}  b5 {[%clk 0:01:31]} 15. b4 {[%clk 0:02:28]}  Bd6 {[%clk 0:01:06]} 16. Bf4 {[%clk 0:02:14]}  Qe7 {[%clk 0:00:58]} 17. Re1 {[%clk 0:02:08]}  Rfd8 {[%clk 0:00:58]} 18. Bg5 {[%clk 0:01:54]}  h6 {[%clk 0:00:53]} 19. Bh4 {[%clk 0:01:54]}  Be8 {[%clk 0:00:46]} 20. Ne4 {[%clk 0:01:43]}  Bxe5 {[%clk 0:00:41]} 21. dxe5 {[%clk 0:01:24]}  Rxd1 {[%clk 0:00:42]} 22. Rexd1 {[%clk 0:01:24]}  Rd8 {[%clk 0:00:22]} 23. exf6 {[%clk 0:01:18]}  Rxd1+ {[%clk 0:00:22]} 24. Rxd1 {[%clk 0:01:17]}  Qf8 {[%clk 0:00:16]} 25. fxg7 {[%clk 0:01:10]}  Kxg7 {[%clk 0:00:17]} 26. Bf6+ {[%clk 0:01:07]}  Kh7 {[%clk 0:00:17]} 27. Ng3 {[%clk 0:00:50]}  Ne7 {[%clk 0:00:14]} 28. Be4+ {[%clk 0:00:50]}  Ng6 {[%clk 0:00:13]} 29. h4 {[%clk 0:00:43]}  h5 {[%clk 0:00:11]} 30. Rd8 {[%clk 0:00:38]}  a5 {[%clk 0:00:11]} 31. bxa5 {[%clk 0:00:21]}  Qxa3 {[%clk 0:00:11]} 32. Rxe8 {[%clk 0:00:16]}  Kh6 {[%clk 0:00:06]} 33. Rg8 {[%clk 0:00:16]}  Qc1+ {[%clk 0:00:05]} 34. Kh2 {[%clk 0:00:13]}  Qf4 {[%clk 0:00:04]} 35. Bg5+ {[%clk 0:00:13]} 1-0

[Event "January 2 Early 2024"]
[Site "https://www.chess.com"]
[Date "2024.01.02"]
[Round "4"]
[White "Goltsev, Dmitry"]
[Black "Manukyan, Artyom"]
[Result "1/2-1/2"]
[Board "74"]
[TimeControl "180+1"]
[WhiteFideId "24176710"]
[BlackFideId "13305786"]
[WhiteElo "2741"]
[BlackElo "2518"]
[WhiteTeam "RUS"]
[BlackTeam "ARM"]
[WhiteClock "0:00:13"]
[BlackClock "0:00:55"]

1. e4 {[%clk 0:02:45]}  c5 {[%clk 0:02:57]} 2. Nf3 {[%clk 0:02:45]}  d6 {[%clk 0:02:56]} 3. d4 {[%clk 0:02:45]}  cxd4 {[%clk 0:02:57]} 4. Nxd4 {[%clk 0:02:46]}  Nf6 {[%clk 0:02:57]} 5. Nc3 {[%clk 0:02:46]}  g6 {[%clk 0:02:54]} 6. Be2 {[%clk 0:02:46]}  Bg7 {[%clk 0:02:53]} 7. O-O {[%clk 0:02:47]}  O-O {[%clk 0:02:54]} 8. Bg5 {[%clk 0:02:46]}  Nc6 {[%clk 0:02:53]} 9. Qd2 {[%clk 0:02:45]}  Bd7 {[%clk 0:02:51]} 10. Rad1 {[%clk 0:02:45]}  Rc8 {[%clk 0:02:51]} 11. Nb3 {[%clk 0:02:44]}  Re8 {[%clk 0:02:49]} 12. Rfe1 {[%clk 0:02:41]}  Na5 {[%clk 0:02:47]} 13. Nxa5 {[%clk 0:02:36]}  Qxa5 {[%clk 0:02:48]} 14. Bf1 {[%clk 0:02:36]}  Be6 {[%clk 0:02:43]} 15. a3 {[%clk 0:02:23]}  Nd7 {[%clk 0:02:39]} 16. Nd5 {[%clk 0:01:56]}  Qxd2 {[%clk 0:02:37]} 17. Rxd2 {[%clk 0:01:56]}  Bxd5 {[%clk 0:02:37]} 18. exd5 {[%clk 0:01:46]}  Bxb2 {[%clk 0:02:32]} 19. Bb5 {[%clk 0:01:44]}  Rc7 {[%clk 0:02:24]} 20. Rxe7 {[%clk 0:01:20]}  Rxe7 {[%clk 0:02:21]} 21. Bxe7 {[%clk 0:01:21]}  Bxa3 {[%clk 0:02:22]} 22. Re2 {[%clk 0:01:14]}  Ne5 {[%clk 0:01:58]} 23. Bf6 {[%clk 0:00:54]}  Rc5 {[%clk 0:01:54]} 24. f4 {[%clk 0:00:15]}  Rxb5 {[%clk 0:01:08]} 25. fxe5 {[%clk 0:00:13]}  Rxd5 {[%clk 0:01:04]} 26. exd6 {[%clk 0:00:12]}  Bc5+ {[%clk 0:01:03]} 27. Kf1 {[%clk 0:00:09]}  Rd1+ {[%clk 0:01:03]} 28. Re1 {[%clk 0:00:09]}  Rxe1+ {[%clk 0:01:03]} 29. Kxe1 {[%clk 0:00:10]}  Bxd6 {[%clk 0:01:04]} 30. Ke2 {[%clk 0:00:09]}  Bxh2 {[%clk 0:01:03]} 31. Bd4 {[%clk 0:00:08]}  a5 {[%clk 0:01:01]} 32. Kd3 {[%clk 0:00:08]}  Bc7 {[%clk 0:01:01]} 33. Kc4 {[%clk 0:00:09]}  f5 {[%clk 0:00:59]} 34. Kb5 {[%clk 0:00:08]}  Kf7 {[%clk 0:00:59]} 35. c4 {[%clk 0:00:08]}  Ke6 {[%clk 0:01:00]} 36. c5 {[%clk 0:00:09]}  g5 {[%clk 0:01:00]} 37. Bc3 {[%clk 0:00:10]}  h5 {[%clk 0:00:59]} 38. c6 {[%clk 0:00:10]}  bxc6+ {[%clk 0:00:59]} 39. Kxc6 {[%clk 0:00:11]}  Bd8 {[%clk 0:00:58]} 40. Kb7 {[%clk 0:00:12]}  f4 {[%clk 0:00:58]} 41. Kc8 {[%clk 0:00:12]}  g4 {[%clk 0:00:54]} 42. Kxd8 {[%clk 0:00:11]}  f3 {[%clk 0:00:53]} 43. gxf3 {[%clk 0:00:12]}  gxf3 {[%clk 0:00:54]} 44. Bxa5 {[%clk 0:00:12]}  f2 {[%clk 0:00:54]} 45. Kc8 {[%clk 0:00:13]}  f1=Q {[%clk 0:00:55]} 46. Kb7 {[%clk 0:00:12]}  Qb5+ {[%clk 0:00:55]} 47. Bb6 {[%clk 0:00:13]}  Qxb6+ {[%clk 0:00:54]} 48. Ka8 {[%clk 0:00:13]}  h4 {[%clk 0:00:55]} 1/2-1/2

[Event "January 2 Early 2024"]
[Site "https://www.chess.com"]
[Date "2024.01.02"]
[Round "4"]
[White "Liyanage, Ranindu Dilshan"]
[Black "Pinero Rodriguez, Carlos Jose"]
[Result "0-1"]
[Board "76"]
[TimeControl "180+1"]
[WhiteFideId "9915834"]
[BlackFideId "3901726"]
[WhiteElo "2736"]
[BlackElo "2510"]
[WhiteTeam "SRI"]
[BlackTeam "VEN"]
[WhiteClock "0:00:15"]
[BlackClock "0:00:18"]

1. d4 {[%clk 0:01:14]}  Nf6 {[%clk 0:02:58]} 2. Nc3 {[%clk 0:01:13]}  d5 {[%clk 0:02:40]} 3. Bf4 {[%clk 0:01:13]}  g6 {[%clk 0:02:38]} 4. e3 {[%clk 0:01:13]}  Bg7 {[%clk 0:02:39]} 5. Nb5 {[%clk 0:01:14]}  Na6 {[%clk 0:02:38]} 6. h3 {[%clk 0:01:14]}  O-O {[%clk 0:02:38]} 7. Nf3 {[%clk 0:01:14]}  Ne4 {[%clk 0:02:30]} 8. a4 {[%clk 0:01:08]}  c6 {[%clk 0:02:17]} 9. Na3 {[%clk 0:01:08]}  Nc7 {[%clk 0:01:56]} 10. Bd3 {[%clk 0:01:04]}  f5 {[%clk 0:01:49]} 11. O-O {[%clk 0:00:57]}  e6 {[%clk 0:01:37]} 12. Be5 {[%clk 0:00:49]}  Ne8 {[%clk 0:01:36]} 13. c3 {[%clk 0:00:40]}  N8d6 {[%clk 0:01:33]} 14. Nc2 {[%clk 0:00:38]}  Qe7 {[%clk 0:01:31]} 15. b3 {[%clk 0:00:31]}  Bd7 {[%clk 0:01:31]} 16. c4 {[%clk 0:00:28]}  Nf7 {[%clk 0:01:30]} 17. Bxg7 {[%clk 0:00:27]}  Kxg7 {[%clk 0:01:31]} 18. Nce1 {[%clk 0:00:25]}  Rad8 {[%clk 0:01:29]} 19. Bc2 {[%clk 0:00:23]}  Bc8 {[%clk 0:00:55]} 20. Nd3 {[%clk 0:00:23]}  Nf6 {[%clk 0:00:50]} 21. Qe2 {[%clk 0:00:23]}  Nd7 {[%clk 0:00:48]} 22. c5 {[%clk 0:00:24]}  e5 {[%clk 0:00:47]} 23. dxe5 {[%clk 0:00:24]}  Nfxe5 {[%clk 0:00:47]} 24. Ndxe5 {[%clk 0:00:24]}  Nxe5 {[%clk 0:00:45]} 25. Nd4 {[%clk 0:00:24]}  Rfe8 {[%clk 0:00:44]} 26. b4 {[%clk 0:00:24]}  Qf6 {[%clk 0:00:39]} 27. Bb3 {[%clk 0:00:24]}  Bd7 {[%clk 0:00:39]} 28. Qd2 {[%clk 0:00:24]}  Re7 {[%clk 0:00:37]} 29. f4 {[%clk 0:00:24]}  Nf7 {[%clk 0:00:37]} 30. Rae1 {[%clk 0:00:25]}  Rde8 {[%clk 0:00:37]} 31. b5 {[%clk 0:00:25]}  Nd8 {[%clk 0:00:37]} 32. Nf3 {[%clk 0:00:23]}  Nf7 {[%clk 0:00:36]} 33. Qd4 {[%clk 0:00:19]}  Qxd4 {[%clk 0:00:34]} 34. exd4 {[%clk 0:00:20]}  Rxe1 {[%clk 0:00:34]} 35. Rxe1 {[%clk 0:00:21]}  Rxe1+ {[%clk 0:00:34]} 36. Nxe1 {[%clk 0:00:22]}  Nd8 {[%clk 0:00:34]} 37. Nd3 {[%clk 0:00:22]}  Ne6 {[%clk 0:00:34]} 38. Ne5 {[%clk 0:00:21]}  Be8 {[%clk 0:00:34]} 39. bxc6 {[%clk 0:00:19]}  bxc6 {[%clk 0:00:35]} 40. Nf3 {[%clk 0:00:19]}  Nxf4 {[%clk 0:00:34]} 41. a5 {[%clk 0:00:20]}  Ne6 {[%clk 0:00:31]} 42. Kf2 {[%clk 0:00:20]}  Kf6 {[%clk 0:00:31]} 43. Ke3 {[%clk 0:00:20]}  g5 {[%clk 0:00:29]} 44. Ba4 {[%clk 0:00:20]}  f4+ {[%clk 0:00:27]} 45. Kd3 {[%clk 0:00:19]}  Nd8 {[%clk 0:00:24]} 46. Ne5 {[%clk 0:00:19]}  h5 {[%clk 0:00:23]} 47. Bd1 {[%clk 0:00:19]}  Bg6+ {[%clk 0:00:21]} 48. Kc3 {[%clk 0:00:18]}  Be8 {[%clk 0:00:20]} 49. Ba4 {[%clk 0:00:18]}  Kf5 {[%clk 0:00:19]} 50. Bc2+ {[%clk 0:00:18]}  Kf6 {[%clk 0:00:20]} 51. a6 {[%clk 0:00:19]}  Ke6 {[%clk 0:00:19]} 52. Kb4 {[%clk 0:00:17]}  Kf6 {[%clk 0:00:19]} 53. Ba4 {[%clk 0:00:17]}  Ke6 {[%clk 0:00:19]} 54. Bc2 {[%clk 0:00:18]}  Kf6 {[%clk 0:00:18]} 55. Kc3 {[%clk 0:00:15]}  Ne6 {[%clk 0:00:18]} 56. Ba4 {[%clk 0:00:14]}  Nd8 {[%clk 0:00:18]} 57. Kd3 {[%clk 0:00:15]}  Ke6 {[%clk 0:00:17]} 58. Bd1 {[%clk 0:00:14]}  Kf5 {[%clk 0:00:17]} 59. Kc3 {[%clk 0:00:15]}  Ke4 {[%clk 0:00:16]} 60. Bc2+ {[%clk 0:00:12]}  Ke3 {[%clk 0:00:16]} 61. Bg6 {[%clk 0:00:13]}  Bxg6 {[%clk 0:00:15]} 62. Nxg6 {[%clk 0:00:14]}  g4 {[%clk 0:00:16]} 63. hxg4 {[%clk 0:00:14]}  hxg4 {[%clk 0:00:16]} 64. Ne5 {[%clk 0:00:15]}  g3 {[%clk 0:00:15]} 65. Nf3 {[%clk 0:00:15]}  Kf2 {[%clk 0:00:16]} 66. Nh4 {[%clk 0:00:15]}  f3 {[%clk 0:00:14]} 67. gxf3 {[%clk 0:00:14]}  g2 {[%clk 0:00:15]} 68. Nxg2 {[%clk 0:00:14]}  Kxg2 {[%clk 0:00:16]} 69. f4 {[%clk 0:00:15]}  Kf3 {[%clk 0:00:16]} 70. f5 {[%clk 0:00:15]}  Kf4 {[%clk 0:00:17]} 71. f6 {[%clk 0:00:16]}  Kf5 {[%clk 0:00:17]} 72. Kd3 {[%clk 0:00:16]}  Kxf6 {[%clk 0:00:17]} 73. Ke3 {[%clk 0:00:17]}  Ne6 {[%clk 0:00:17]} 74. Kd3 {[%clk 0:00:15]}  Kf5 {[%clk 0:00:18]} 0-1